[Event "European Women Rapid-ch 2023"]
[Site "Monaco"]
[Date "2024.01.14"]
[Round "8.2"]
[White "Wagner, Dinara"]
[Black "Khotenashvili, Bella"]
[Result "1/2-1/2"]
[ECO "A61"]
[WhiteElo "2459"]
[BlackElo "2467"]
[Annotator "RC"]
[PlyCount "69"]
[EventDate "2023.12.19"]
[EventType "swiss"]
[EventCountry "MNC"]
[SourceTitle "playchess.com"]
[Source "ChessBase"]
[SourceQuality "1"]
[TimeControl "900+10"]

1. d4 {[%emt 0:00:01]} Nf6 {[%emt 0:00:02]} 2. c4 {[%emt 0:00:01]} c5 {[%emt 0:00:01]} 3. d5 {[%emt 0:00:06]} e6 {[%emt 0:00:01]} 4. Nc3 {[%emt 0:00:14]} exd5 {[%emt 0:00:03]} 5. cxd5 {[%emt 0:00:01]} d6 {[%emt 0:00:01]} 6. Nf3 {[%emt 0:00:04]} g6 {[%emt 0:00:02]} 7. Nd2 {[%emt 0:00:09]} Nbd7 {[%emt 0:00:24]} 8. e4 {[%emt 0:00:06]} a6 {[%emt 0:00:20]} 9. a4 {[%emt 0:00:03]} Bg7 {[%emt 0:00:02]} 10. Nc4 {[%emt 0:00:28]} Nb6 {[%emt 0:00:03]} 11. Na3 {[%emt 0:00:54]} O-O {[%emt 0:00:07]} 12. a5 {[%emt 0:00:24]} Nbd7 {[%emt 0:00:03]} 13. Nc4 {[%emt 0:00:00]} Ne8 {[%emt 0:00:13]} 14. Be2 {[%emt 0:00:22]} Ne5 {[%emt 0:00:36]} 15. Nb6 {[%emt 0:00:25]} Rb8 {[%emt 0:00:01]} 16. O-O {[%emt 0:00:10]} f5 {[%emt 0:00:15]} 17. Nxc8 {[%emt 0:00:49]} Rxc8 {[%emt 0:00:32]} 18. exf5 {[%emt 0:00:03]} gxf5 {[%emt 0:00:02]} 19. Bf4 {[%emt 0:01:20]} Ng6 {[%emt 0:00:47]} 20. Bd2 {[%emt 0:00:13]} Nf6 {[%emt 0:00:29]} 21. Bd3 {[%emt 0:00:36]} Nd7 {[%emt 0:00:39]} 22. f4 {[%emt 0:01:16]} c4 {[%emt 0:00:19]} 23. Bc2 {[%emt 0:01:55]} b5 {[%emt 0:00:57]} 24. axb6 {[%emt 0:00:44]} Qxb6+ {[%emt 0:00:02]} 25. Kh1 {[%emt 0:00:01]} Nc5 {[%emt 0:03:24]} 26. Rb1 {[%emt 0:01:45]} Rce8 {[%emt 0:05:50]} 27. Qh5 {[%emt 0:00:55]} Nb3 {[%emt 0:00:25]} 28. Be1 {[%emt 0:03:20]} Nd4 {[%emt 0:02:11]} 29. Bf2 {[%emt 0:00:01]} Nxf4 {[%emt 0:00:06]} 30. Qd1 {[%emt 0:00:01]} Nd3 {[%emt 0:00:24]} 31. Bxd3 {[%emt 0:00:09]} cxd3 {[%emt 0:00:02]} 32. Qxd3 {[%emt 0:00:04]} Qb4 {[%emt 0:00:21]} 33. Bxd4 {[%emt 0:01:16]} Qxd4 {[%emt 0:00:12]} 34. Qxd4 {[%emt 0:00:51]} Bxd4 {[%emt 0:00:01]} 35. Ra1 1/2-1/2

[Event "European Women Rapid-ch 2023"]
[Site "Monaco"]
[Date "2024.01.14"]
[Round "8.3"]
[White "Stefanova, Antoaneta"]
[Black "Batsiashvili, Nino"]
[Result "1-0"]
[ECO "D06"]
[WhiteElo "2431"]
[BlackElo "2451"]
[Annotator "RC"]
[PlyCount "81"]
[EventDate "2023.12.19"]
[EventType "swiss"]
[EventCountry "MNC"]
[SourceTitle "playchess.com"]
[Source "ChessBase"]
[SourceQuality "1"]
[TimeControl "900+10"]

1. d4 {[%emt 0:00:01]} d5 {[%emt 0:00:01]} 2. Nf3 {[%emt 0:00:03]} Nf6 {[%emt 0:00:02]} 3. e3 {[%emt 0:00:01]} Bf5 {[%emt 0:00:08]} 4. c4 {[%emt 0:00:06]} e6 {[%emt 0:00:01]} 5. Nc3 {[%emt 0:00:11]} Bb4 {[%emt 0:00:10]} 6. Qa4+ {[%emt 0:01:07]} Nc6 {[%emt 0:00:07]} 7. Ne5 {[%emt 0:00:05]} O-O {[%emt 0:01:00]} 8. Nxc6 {[%emt 0:00:04]} Bxc3+ {[%emt 0:00:02]} 9. bxc3 {[%emt 0:00:01]} bxc6 {[%emt 0:00:01]} 10. Qxc6 {[%emt 0:00:46]} Ne4 {[%emt 0:00:29]} 11. cxd5 {[%emt 0:01:25]} exd5 {[%emt 0:02:15]} 12. Be2 {[%emt 0:02:49]} Rb8 {[%emt 0:00:43]} 13. c4 {[%emt 0:00:25]} Nc3 {[%emt 0:02:54]} 14. Bf3 {[%emt 0:01:27]} Rb6 {[%emt 0:01:04]} 15. Qc5 {[%emt 0:00:03]} Be4 {[%emt 0:02:50]} 16. Bxe4 {[%emt 0:01:47]} dxe4 {[%emt 0:00:01]} 17. Qa5 {[%emt 0:01:43]} Nb1 {[%emt 0:00:59]} 18. O-O {[%emt 0:02:28]} Qh4 {[%emt 0:00:28]} 19. Qxa7 {[%emt 0:01:39]} Nc3 {[%emt 0:00:41]} 20. Qxc7 {[%emt 0:00:00]} Ne2+ {[%emt 0:00:20]} 21. Kh1 {[%emt 0:00:36]} Rg6 {[%emt 0:01:57]} 22. h3 {[%emt 0:00:10]} Qg5 {[%emt 0:01:57]} 23. Qh2 {[%emt 0:00:05]} Qa5 {[%emt 0:00:30]} 24. a4 {[%emt 0:00:46]} Rc8 {[%emt 0:00:07]} 25. Ba3 {[%emt 0:00:10]} Qxa4 {[%emt 0:00:10]} 26. Bc5 {[%emt 0:00:41]} Qxc4 {[%emt 0:00:56]} 27. Rfe1 {[%emt 0:00:05]} h6 {[%emt 0:00:00]} 28. Qe5 {[%emt 0:00:21]} Re6 {[%emt 0:00:00]} 29. Qh5 {[%emt 0:00:07]} Nc3 {[%emt 0:00:00]} 30. Rec1 {[%emt 0:00:03]} Rb8 {[%emt 0:00:00]} 31. Ra3 {[%emt 0:00:21]} Rb1 {[%emt 0:00:07]} 32. Rxb1 {[%emt 0:00:14]} Nxb1 {[%emt 0:00:03]} 33. Ra8+ {[%emt 0:00:03]} Kh7 {[%emt 0:00:01]} 34. Qxf7 {[%emt 0:00:07]} Qf1+ {[%emt 0:00:01]} 35. Kh2 {[%emt 0:00:01]} Rf6 {[%emt 0:00:01]} 36. Qg8+ {[%emt 0:00:07]} Kg6 {[%emt 0:00:05]} 37. Qe8+ {[%emt 0:00:02]} Kg5 {[%emt 0:00:06]} 38. Qe5+ {[%emt 0:00:06]} Rf5 {[%emt 0:00:32]} 39. Qg3+ {[%emt 0:00:33]} Kf6 {[%emt 0:00:04]} 40. Rf8+ {[%emt 0:00:04]} Ke6 {[%emt 0:00:04]} 41. Qd6# {[%emt 0:00:03]} 1-0

[Event "European Women Rapid-ch 2023"]
[Site "Monaco"]
[Date "2024.01.14"]
[Round "8.4"]
[White "Ushenina, Anna"]
[Black "Garcia Martin, Marta"]
[Result "1/2-1/2"]
[ECO "A47"]
[WhiteElo "2415"]
[BlackElo "2342"]
[Annotator "RC"]
[PlyCount "72"]
[EventDate "2023.12.19"]
[EventType "swiss"]
[EventCountry "MNC"]
[SourceTitle "playchess.com"]
[Source "ChessBase"]
[SourceQuality "1"]
[TimeControl "900+10"]

1. d4 {[%emt 0:00:04]} Nf6 {[%emt 0:00:02]} 2. Nf3 {[%emt 0:00:04]} b6 {[%emt 0:00:13]} 3. Bg5 {[%emt 0:00:43]} Bb7 {[%emt 0:00:03]} 4. Nbd2 {[%emt 0:00:28]} g6 {[%emt 0:01:44]} 5. Bxf6 {[%emt 0:01:12]} exf6 {[%emt 0:00:02]} 6. e4 {[%emt 0:00:44]} Bg7 {[%emt 0:00:22]} 7. Bc4 {[%emt 0:00:32]} O-O {[%emt 0:00:18]} 8. O-O {[%emt 0:00:05]} Nc6 {[%emt 0:01:17]} 9. Bd5 {[%emt 0:00:13]} Rb8 {[%emt 0:00:37]} 10. Re1 {[%emt 0:00:18]} Ba6 {[%emt 0:01:06]} 11. c3 {[%emt 0:01:03]} Ne7 {[%emt 0:00:13]} 12. Bc4 {[%emt 0:00:07]} Bb7 {[%emt 0:01:00]} 13. a4 {[%emt 0:01:28]} a5 {[%emt 0:01:25]} 14. Qb3 {[%emt 0:03:48]} d5 {[%emt 0:00:06]} 15. exd5 {[%emt 0:00:20]} Nxd5 {[%emt 0:00:01]} 16. Bf1 {[%emt 0:00:45]} Qd7 {[%emt 0:01:13]} 17. g3 {[%emt 0:00:41]} Rfe8 {[%emt 0:01:34]} 18. Rxe8+ {[%emt 0:00:08]} Rxe8 {[%emt 0:00:03]} 19. Bb5 {[%emt 0:00:02]} c6 {[%emt 0:00:03]} 20. Bf1 {[%emt 0:00:15]} Qc7 {[%emt 0:00:38]} 21. Bg2 {[%emt 0:00:40]} f5 {[%emt 0:00:30]} 22. Re1 {[%emt 0:00:56]} Rxe1+ {[%emt 0:00:21]} 23. Nxe1 {[%emt 0:00:01]} Qe7 {[%emt 0:01:09]} 24. Nef3 {[%emt 0:00:16]} f4 {[%emt 0:00:58]} 25. Qd1 {[%emt 0:00:31]} fxg3 {[%emt 0:00:06]} 26. hxg3 {[%emt 0:00:01]} c5 {[%emt 0:00:34]} 27. Nc4 {[%emt 0:01:28]} cxd4 {[%emt 0:00:21]} 28. Nxd4 {[%emt 0:00:02]} Qc5 {[%emt 0:02:03]} 29. Qe2 {[%emt 0:00:35]} Bxd4 {[%emt 0:00:47]} 30. cxd4 {[%emt 0:00:03]} Qc7 {[%emt 0:00:15]} 31. Qe8+ {[%emt 0:01:55]} Kg7 {[%emt 0:00:01]} 32. Qe5+ {[%emt 0:00:29]} Qxe5 {[%emt 0:00:08]} 33. dxe5 {[%emt 0:00:09]} Kf8 {[%emt 0:01:08]} 34. b3 {[%emt 0:00:29]} Ke7 {[%emt 0:00:10]} 35. Nxb6 {[%emt 0:00:04]} Nxb6 {[%emt 0:00:04]} 36. Bxb7 {[%emt 0:00:01]} Ke6 {[%emt 0:00:18]} 1/2-1/2

[Event "European Women Rapid-ch 2023"]
[Site "Monaco"]
[Date "2024.01.14"]
[Round "8.5"]
[White "Osmak, Yuliia"]
[Black "Hunt, Harriet V"]
[Result "1-0"]
[ECO "C49"]
[WhiteElo "2450"]
[BlackElo "2306"]
[Annotator "RC"]
[PlyCount "113"]
[EventDate "2023.12.19"]
[EventType "swiss"]
[EventCountry "MNC"]
[SourceTitle "playchess.com"]
[Source "ChessBase"]
[SourceQuality "1"]
[TimeControl "900+10"]

1. e4 {[%emt 0:00:01]} e5 {[%emt 0:00:02]} 2. Nf3 {[%emt 0:00:01]} Nc6 {[%emt 0:00:01]} 3. Nc3 {[%emt 0:00:01]} Nf6 {[%emt 0:00:03]} 4. Bb5 {[%emt 0:00:01]} Bb4 {[%emt 0:00:28]} 5. O-O {[%emt 0:00:04]} d6 {[%emt 0:00:19]} 6. Nd5 {[%emt 0:01:35]} Ba5 {[%emt 0:02:14]} 7. d4 {[%emt 0:01:08]} a6 {[%emt 0:01:09]} 8. Nxf6+ {[%emt 0:02:08]} gxf6 {[%emt 0:02:59]} 9. Bxc6+ {[%emt 0:02:22]} bxc6 {[%emt 0:00:01]} 10. dxe5 {[%emt 0:00:01]} fxe5 {[%emt 0:00:47]} 11. Bg5 {[%emt 0:00:01]} Qd7 {[%emt 0:00:00]} 12. Qd3 {[%emt 0:00:27]} Rg8 {[%emt 0:01:04]} 13. Bh4 {[%emt 0:01:09]} Qg4 {[%emt 0:00:50]} 14. Bg3 {[%emt 0:00:01]} Be6 {[%emt 0:00:08]} 15. Rad1 {[%emt 0:00:14]} Bb6 {[%emt 0:00:41]} 16. c4 {[%emt 0:00:55]} a5 {[%emt 0:00:17]} 17. Qc2 {[%emt 0:01:02]} Bc5 {[%emt 0:00:27]} 18. Rfe1 {[%emt 0:00:50]} a4 {[%emt 0:00:10]} 19. Qc3 {[%emt 0:00:27]} Ke7 {[%emt 0:00:42]} 20. b4 {[%emt 0:00:34]} axb3 {[%emt 0:00:04]} 21. axb3 {[%emt 0:00:01]} Ra2 {[%emt 0:00:42]} 22. Rd2 {[%emt 0:00:18]} Rxd2 {[%emt 0:00:17]} 23. Qxd2 {[%emt 0:00:05]} Rb8 {[%emt 0:00:16]} 24. Bh4+ {[%emt 0:00:18]} f6 {[%emt 0:00:13]} 25. Qa5 {[%emt 0:00:27]} Kd7 {[%emt 0:01:24]} 26. Rd1 {[%emt 0:01:02]} Bb6 {[%emt 0:00:21]} 27. Qe1 {[%emt 0:00:21]} Qg6 {[%emt 0:00:30]} 28. Bg3 {[%emt 0:00:22]} Bg4 {[%emt 0:00:22]} 29. Rd3 {[%emt 0:00:31]} Ra8 {[%emt 0:01:03]} 30. h3 {[%emt 0:00:20]} Bxf3 {[%emt 0:00:38]} 31. Rxf3 {[%emt 0:00:01]} Bd4 {[%emt 0:00:02]} 32. Kh2 {[%emt 0:00:05]} Rg8 {[%emt 0:00:42]} 33. Qe2 {[%emt 0:00:18]} h5 {[%emt 0:00:10]} 34. h4 {[%emt 0:01:00]} Qg4 {[%emt 0:00:21]} 35. Qd3 {[%emt 0:00:17]} Ke7 {[%emt 0:00:08]} 36. b4 {[%emt 0:00:31]} Rb8 {[%emt 0:00:04]} 37. b5 {[%emt 0:00:15]} cxb5 {[%emt 0:00:05]} 38. cxb5 {[%emt 0:00:01]} Bc5 {[%emt 0:00:22]} 39. Rf5 {[%emt 0:00:38]} Ra8 {[%emt 0:00:13]} 40. Qf3 {[%emt 0:00:40]} Qxf3 {[%emt 0:00:22]} 41. gxf3 {[%emt 0:00:01]} Rh8 {[%emt 0:00:05]} 42. f4 {[%emt 0:00:04]} Ke6 {[%emt 0:00:05]} 43. Kg2 {[%emt 0:00:13]} Bd4 {[%emt 0:00:11]} 44. fxe5 {[%emt 0:00:44]} dxe5 {[%emt 0:00:05]} 45. f4 {[%emt 0:00:23]} Rb8 {[%emt 0:00:59]} 46. Rxh5 {[%emt 0:00:03]} Rxb5 {[%emt 0:00:04]} 47. f5+ {[%emt 0:00:05]} Ke7 {[%emt 0:00:05]} 48. Rh7+ {[%emt 0:00:02]} Kd6 {[%emt 0:00:01]} 49. Rf7 {[%emt 0:00:04]} Rb2+ {[%emt 0:00:05]} 50. Kf3 {[%emt 0:00:10]} Rb3+ {[%emt 0:00:09]} 51. Kg4 {[%emt 0:00:08]} Re3 {[%emt 0:00:06]} 52. Rxf6+ {[%emt 0:00:02]} Kc5 {[%emt 0:00:00]} 53. h5 {[%emt 0:00:37]} Rxe4+ {[%emt 0:00:04]} 54. Kh3 {[%emt 0:00:02]} Re3 {[%emt 0:00:55]} 55. h6 {[%emt 0:00:06]} e4 {[%emt 0:00:02]} 56. Re6 {[%emt 0:00:13]} Kd5 {[%emt 0:00:21]} 57. h7 {[%emt 0:00:04]} 1-0

[Event "European Women Rapid-ch 2023"]
[Site "Monaco"]
[Date "2024.01.14"]
[Round "8.6"]
[White "Salimova, Nurgyul"]
[Black "Unuk, Laura"]
[Result "1-0"]
[ECO "E06"]
[WhiteElo "2426"]
[BlackElo "2346"]
[Annotator "RC"]
[PlyCount "101"]
[EventDate "2023.12.19"]
[EventType "swiss"]
[EventCountry "MNC"]
[SourceTitle "playchess.com"]
[Source "ChessBase"]
[SourceQuality "1"]
[TimeControl "900+10"]

1. d4 {[%emt 0:00:31]} d5 {[%emt 0:00:03]} 2. c4 {[%emt 0:00:02]} e6 {[%emt 0:00:02]} 3. Nf3 {[%emt 0:00:05]} Nf6 {[%emt 0:00:19]} 4. g3 {[%emt 0:00:16]} Be7 {[%emt 0:00:48]} 5. Bg2 {[%emt 0:00:02]} O-O {[%emt 0:00:03]} 6. O-O {[%emt 0:00:03]} a5 {[%emt 0:00:07]} 7. Nc3 {[%emt 0:00:44]} c6 {[%emt 0:00:30]} 8. Bf4 {[%emt 0:00:02]} dxc4 {[%emt 0:00:45]} 9. Ne5 {[%emt 0:00:06]} Nd5 {[%emt 0:00:08]} 10. Nxc4 {[%emt 0:00:02]} Nxf4 {[%emt 0:01:25]} 11. gxf4 {[%emt 0:00:02]} Nd7 {[%emt 0:01:16]} 12. e3 {[%emt 0:00:20]} Nb6 {[%emt 0:00:39]} 13. Nxb6 {[%emt 0:01:08]} Qxb6 {[%emt 0:00:03]} 14. Qc2 {[%emt 0:00:30]} Bd7 {[%emt 0:00:45]} 15. Be4 {[%emt 0:01:44]} f5 {[%emt 0:01:33]} 16. Bf3 {[%emt 0:00:30]} Rf6 {[%emt 0:01:28]} 17. Kh1 {[%emt 0:00:50]} c5 {[%emt 0:00:33]} 18. d5 {[%emt 0:01:04]} Kh8 {[%emt 0:01:07]} 19. Rad1 {[%emt 0:00:38]} Bd6 {[%emt 0:01:12]} 20. dxe6 {[%emt 0:00:52]} Bxe6 {[%emt 0:00:03]} 21. Rg1 {[%emt 0:01:10]} Rd8 {[%emt 0:00:43]} 22. Qe2 {[%emt 0:02:58]} Rff8 {[%emt 0:00:47]} 23. Nd5 {[%emt 0:00:26]} Bxd5 {[%emt 0:00:59]} 24. Rxd5 {[%emt 0:00:02]} Be7 {[%emt 0:00:09]} 25. Rgd1 {[%emt 0:00:35]} Qc7 {[%emt 0:01:56]} 26. Qb5 {[%emt 0:00:16]} Rxd5 {[%emt 0:00:41]} 27. Rxd5 {[%emt 0:00:02]} Bd6 {[%emt 0:00:15]} 28. Qd3 {[%emt 0:00:26]} c4 {[%emt 0:00:16]} 29. Qd4 {[%emt 0:00:19]} Rf6 {[%emt 0:00:02]} 30. Rb5 {[%emt 0:00:21]} b6 {[%emt 0:01:06]} 31. Rxb6 {[%emt 0:00:22]} Bc5 {[%emt 0:00:20]} 32. Rxf6 {[%emt 0:00:18]} gxf6 {[%emt 0:00:16]} 33. Qxf6+ {[%emt 0:00:07]} Qg7 {[%emt 0:00:01]} 34. Qxf5 {[%emt 0:00:38]} Bb4 {[%emt 0:00:02]} 35. Qc8+ {[%emt 0:00:22]} Bf8 {[%emt 0:00:01]} 36. Bd5 {[%emt 0:00:39]} Qe7 {[%emt 0:00:32]} 37. Qxc4 {[%emt 0:00:11]} h6 {[%emt 0:00:13]} 38. e4 {[%emt 0:00:44]} Qh4 {[%emt 0:00:10]} 39. Qc3+ {[%emt 0:00:19]} Kh7 {[%emt 0:00:07]} 40. Qg3 {[%emt 0:00:27]} Qxg3 {[%emt 0:00:10]} 41. fxg3 {[%emt 0:00:07]} Kg6 {[%emt 0:00:09]} 42. Kg2 {[%emt 0:00:05]} Bc5 {[%emt 0:00:07]} 43. Kf3 {[%emt 0:00:05]} Bd4 {[%emt 0:00:05]} 44. b3 {[%emt 0:00:03]} Kf6 {[%emt 0:00:04]} 45. e5+ {[%emt 0:00:03]} Ke7 {[%emt 0:00:06]} 46. g4 {[%emt 0:00:07]} Bg1 {[%emt 0:00:14]} 47. h4 {[%emt 0:00:05]} Bc5 {[%emt 0:00:06]} 48. Ke4 {[%emt 0:00:03]} Bb4 {[%emt 0:00:08]} 49. f5 {[%emt 0:00:12]} Be1 {[%emt 0:00:03]} 50. f6+ {[%emt 0:00:01]} Kf8 {[%emt 0:00:01]} 51. e6 {[%emt 0:00:09]} 1-0

[Event "European Women Rapid-ch 2023"]
[Site "Monaco"]
[Date "2024.01.14"]
[Round "8.7"]
[White "Daulyte-Cornette, Deimante"]
[Black "Agrest, Inna"]
[Result "0-1"]
[ECO "C78"]
[WhiteElo "2372"]
[BlackElo "2287"]
[Annotator "RC"]
[PlyCount "66"]
[EventDate "2023.12.19"]
[EventType "swiss"]
[EventCountry "MNC"]
[SourceTitle "playchess.com"]
[Source "ChessBase"]
[SourceQuality "1"]
[TimeControl "900+10"]

1. e4 {[%emt 0:00:02]} e5 {[%emt 0:00:00]} 2. Nf3 {[%emt 0:00:03]} Nc6 {[%emt 0:00:02]} 3. Bb5 {[%emt 0:00:02]} a6 {[%emt 0:00:02]} 4. Ba4 {[%emt 0:00:03]} Nf6 {[%emt 0:00:04]} 5. O-O {[%emt 0:00:05]} Bc5 {[%emt 0:00:13]} 6. c3 {[%emt 0:00:36]} b5 {[%emt 0:00:07]} 7. Bb3 {[%emt 0:00:11]} d6 {[%emt 0:00:07]} 8. d4 {[%emt 0:00:05]} Bb6 {[%emt 0:00:03]} 9. Re1 {[%emt 0:00:04]} O-O {[%emt 0:00:04]} 10. Bg5 {[%emt 0:00:09]} h6 {[%emt 0:01:18]} 11. Bh4 {[%emt 0:00:10]} Bg4 {[%emt 0:01:01]} 12. Bd5 {[%emt 0:00:46]} Qe8 {[%emt 0:01:40]} 13. Bxf6 {[%emt 0:00:52]} gxf6 {[%emt 0:00:07]} 14. h3 {[%emt 0:01:06]} Bh5 {[%emt 0:03:22]} 15. Qc1 {[%emt 0:02:20]} Kh7 {[%emt 0:01:02]} 16. Nh4 {[%emt 0:00:20]} Bg6 {[%emt 0:00:23]} 17. Re3 {[%emt 0:04:25]} Rd8 {[%emt 0:00:32]} 18. Rf3 {[%emt 0:00:22]} exd4 {[%emt 0:01:23]} 19. Rxf6 {[%emt 0:00:37]} Qe5 {[%emt 0:02:07]} 20. Nxg6 {[%emt 0:02:57]} fxg6 {[%emt 0:00:27]} 21. Rxf8 {[%emt 0:00:02]} Rxf8 {[%emt 0:00:02]} 22. Bxc6 {[%emt 0:00:08]} d3 {[%emt 0:00:25]} 23. Nd2 {[%emt 0:00:48]} Rxf2 {[%emt 0:00:49]} 24. Kh1 {[%emt 0:00:12]} Qg5 {[%emt 0:01:05]} 25. e5 {[%emt 0:00:16]} Be3 {[%emt 0:01:08]} 26. Qe1 {[%emt 0:01:22]} Rxd2 {[%emt 0:00:55]} 27. Qf1 {[%emt 0:00:19]} Bf2 {[%emt 0:00:38]} 28. e6 {[%emt 0:00:35]} Qe5 {[%emt 0:00:17]} 29. Bd7 {[%emt 0:00:16]} Re2 {[%emt 0:00:13]} 30. Rd1 {[%emt 0:00:35]} d2 {[%emt 0:00:03]} 31. e7 {[%emt 0:00:13]} Qxe7 {[%emt 0:00:06]} 32. Kh2 {[%emt 0:00:03]} Qe5+ {[%emt 0:00:06]} 33. Kh1 {[%emt 0:00:01]} Re1 {[%emt 0:00:03]} 0-1

[Event "European Women Rapid-ch 2023"]
[Site "Monaco"]
[Date "2024.01.14"]
[Round "8.8"]
[White "Schippke, Manon"]
[Black "Savina, Anastasia"]
[Result "1-0"]
[ECO "C45"]
[WhiteElo "2162"]
[BlackElo "2340"]
[Annotator "RC"]
[PlyCount "107"]
[EventDate "2023.12.19"]
[EventType "swiss"]
[EventCountry "MNC"]
[SourceTitle "playchess.com"]
[Source "ChessBase"]
[SourceQuality "1"]
[TimeControl "900+10"]

1. e4 {[%emt 0:01:18]} e5 {[%emt 0:00:07]} 2. Nf3 {[%emt 0:00:02]} Nc6 {[%emt 0:00:02]} 3. d4 {[%emt 0:00:01]} exd4 {[%emt 0:00:02]} 4. Nxd4 {[%emt 0:00:02]} Qf6 {[%emt 0:00:11]} 5. Nf3 {[%emt 0:00:03]} Bb4+ {[%emt 0:00:08]} 6. c3 {[%emt 0:00:09]} Bc5 {[%emt 0:00:05]} 7. Bd3 {[%emt 0:01:28]} Ne5 {[%emt 0:02:02]} 8. Be2 {[%emt 0:00:19]} Nxf3+ {[%emt 0:01:12]} 9. Bxf3 {[%emt 0:00:02]} Ne7 {[%emt 0:00:07]} 10. O-O {[%emt 0:00:06]} d6 {[%emt 0:00:15]} 11. b4 {[%emt 0:01:06]} Bb6 {[%emt 0:00:17]} 12. Bb2 {[%emt 0:00:39]} Ng6 {[%emt 0:01:12]} 13. Nd2 {[%emt 0:00:59]} Nh4 {[%emt 0:01:03]} 14. e5 {[%emt 0:02:16]} dxe5 {[%emt 0:00:27]} 15. c4 {[%emt 0:00:01]} Bd4 {[%emt 0:01:17]} 16. Bxd4 {[%emt 0:00:06]} Nxf3+ {[%emt 0:00:52]} 17. Qxf3 {[%emt 0:00:14]} Qxf3 {[%emt 0:00:11]} 18. Nxf3 {[%emt 0:00:02]} exd4 {[%emt 0:00:02]} 19. Rfe1+ {[%emt 0:00:01]} Kf8 {[%emt 0:03:55]} 20. Nxd4 {[%emt 0:00:04]} Bd7 {[%emt 0:00:02]} 21. Re5 {[%emt 0:01:58]} Re8 {[%emt 0:00:49]} 22. Rd5 {[%emt 0:00:01]} Ke7 {[%emt 0:00:49]} 23. Rd1 {[%emt 0:01:20]} c6 {[%emt 0:01:11]} 24. Ra5 {[%emt 0:00:18]} a6 {[%emt 0:00:08]} 25. f3 {[%emt 0:01:29]} g6 {[%emt 0:00:45]} 26. Ra3 {[%emt 0:02:18]} Kf6 {[%emt 0:01:27]} 27. Rad3 {[%emt 0:00:03]} Bc8 {[%emt 0:00:07]} 28. Kf2 {[%emt 0:00:13]} Rd8 {[%emt 0:00:15]} 29. Nb3 {[%emt 0:00:23]} Rxd3 {[%emt 0:00:02]} 30. Rxd3 {[%emt 0:00:01]} Re8 {[%emt 0:00:36]} 31. Nc5 {[%emt 0:00:25]} Ke7 {[%emt 0:00:20]} 32. a3 {[%emt 0:01:03]} b6 {[%emt 0:00:08]} 33. Re3+ {[%emt 0:01:11]} Be6 {[%emt 0:00:14]} 34. Na4 {[%emt 0:00:01]} b5 {[%emt 0:00:13]} 35. cxb5 {[%emt 0:00:07]} axb5 {[%emt 0:00:01]} 36. Nc5 {[%emt 0:00:02]} Rd8 {[%emt 0:00:05]} 37. g4 {[%emt 0:00:34]} Rd2+ {[%emt 0:00:04]} 38. Kg3 {[%emt 0:00:01]} h6 {[%emt 0:00:19]} 39. f4 {[%emt 0:00:09]} Rd5 {[%emt 0:00:25]} 40. h4 {[%emt 0:00:12]} Kd6 {[%emt 0:00:09]} 41. Ne4+ {[%emt 0:00:42]} Kc7 {[%emt 0:00:01]} 42. Nf6 {[%emt 0:00:16]} Rd1 {[%emt 0:00:04]} 43. h5 {[%emt 0:00:18]} gxh5 {[%emt 0:00:07]} 44. f5 {[%emt 0:00:00]} Bc4 {[%emt 0:00:11]} 45. Nxh5 {[%emt 0:00:03]} Rg1+ {[%emt 0:00:06]} 46. Kf4 {[%emt 0:00:04]} Kd6 {[%emt 0:00:04]} 47. Ng3 {[%emt 0:00:24]} Bd5 {[%emt 0:00:10]} 48. f6 {[%emt 0:00:01]} Be6 {[%emt 0:00:37]} 49. Ne4+ {[%emt 0:00:29]} Kc7 {[%emt 0:00:04]} 50. Nf2 {[%emt 0:00:01]} Rf1 {[%emt 0:00:17]} 51. Kg3 {[%emt 0:00:02]} Rg1+ {[%emt 0:00:01]} 52. Kh2 {[%emt 0:00:04]} Rf1 {[%emt 0:00:05]} 53. Kg2 {[%emt 0:00:03]} Rc1 {[%emt 0:00:15]} 54. Rxe6 {[%emt 0:00:05]} 1-0

[Event "European Women Rapid-ch 2023"]
[Site "Monaco"]
[Date "2024.01.14"]
[Round "8.9"]
[White "Papp, Petra"]
[Black "Sliwicka, Alicja"]
[Result "1/2-1/2"]
[ECO "B60"]
[WhiteElo "2267"]
[BlackElo "2311"]
[Annotator "RC"]
[PlyCount "75"]
[EventDate "2023.12.19"]
[EventType "swiss"]
[EventCountry "MNC"]
[SourceTitle "playchess.com"]
[Source "ChessBase"]
[SourceQuality "1"]
[TimeControl "900+10"]

1. e4 {[%emt 0:00:03]} c5 {[%emt 0:00:01]} 2. Nc3 {[%emt 0:00:03]} Nc6 {[%emt 0:00:02]} 3. Nge2 {[%emt 0:00:18]} d6 {[%emt 0:00:10]} 4. d4 {[%emt 0:00:15]} cxd4 {[%emt 0:00:02]} 5. Nxd4 {[%emt 0:00:03]} Nf6 {[%emt 0:00:02]} 6. Bg5 {[%emt 0:00:15]} g6 {[%emt 0:00:09]} 7. Bxf6 {[%emt 0:00:27]} exf6 {[%emt 0:00:02]} 8. Bb5 {[%emt 0:00:11]} Bd7 {[%emt 0:00:02]} 9. Bc4 {[%emt 0:00:06]} a6 {[%emt 0:00:35]} 10. O-O {[%emt 0:00:25]} Bg7 {[%emt 0:00:01]} 11. Nxc6 {[%emt 0:01:16]} Bxc6 {[%emt 0:00:03]} 12. Bd5 {[%emt 0:00:20]} O-O {[%emt 0:00:10]} 13. Qd3 {[%emt 0:00:29]} Qb6 {[%emt 0:00:21]} 14. Bb3 {[%emt 0:00:30]} Rad8 {[%emt 0:00:47]} 15. Rad1 {[%emt 0:00:09]} Qc5 {[%emt 0:00:52]} 16. Kh1 {[%emt 0:00:40]} Rfe8 {[%emt 0:00:17]} 17. f4 {[%emt 0:01:16]} f5 {[%emt 0:00:45]} 18. exf5 {[%emt 0:00:38]} Qxf5 {[%emt 0:00:02]} 19. Qxf5 {[%emt 0:04:59]} gxf5 {[%emt 0:00:02]} 20. Rfe1 {[%emt 0:00:01]} Bxc3 {[%emt 0:02:02]} 21. bxc3 {[%emt 0:00:02]} Re4 {[%emt 0:00:02]} 22. Rxe4 {[%emt 0:03:05]} fxe4 {[%emt 0:00:01]} 23. Kg1 {[%emt 0:00:24]} e3 {[%emt 0:02:07]} 24. Kf1 {[%emt 0:01:10]} Re8 {[%emt 0:00:46]} 25. Ke2 {[%emt 0:00:03]} Re4 {[%emt 0:01:02]} 26. Bd5 {[%emt 0:01:50]} Bb5+ {[%emt 0:00:16]} 27. Kf3 {[%emt 0:00:16]} e2 {[%emt 0:00:29]} 28. Re1 {[%emt 0:00:01]} Ra4 {[%emt 0:00:22]} 29. c4 {[%emt 0:00:32]} Bc6 {[%emt 0:00:10]} 30. Rxe2 {[%emt 0:00:10]} Rxc4 {[%emt 0:00:06]} 31. Bxc6 {[%emt 0:00:01]} bxc6 {[%emt 0:00:02]} 32. Ke3 {[%emt 0:00:20]} d5 {[%emt 0:00:06]} 33. g3 {[%emt 0:00:03]} f6 {[%emt 0:00:59]} 34. Kd3 {[%emt 0:00:02]} Kf7 {[%emt 0:00:02]} 35. c3 {[%emt 0:00:04]} h5 {[%emt 0:00:28]} 36. Rb2 {[%emt 0:00:05]} a5 {[%emt 0:00:14]} 37. f5 {[%emt 0:00:26]} Ke7 {[%emt 0:01:19]} 38. Re2+ {[%emt 0:00:18]} 1/2-1/2